bitfinex/quotes_BTCUSD_20240617
["timestamp","ask_amount","ask_price","bid_price","bid_amount"]
[1718653034666,0.00085,66890.0,66889.0,1.59215713]
[1718653034869,0.00085,66890.0,66889.0,1.79385713]
[1718653035067,0.00085,66890.0,66889.0,2.10385913]
[1718653035474,0.00085,66890.0,66889.0,2.11785913]
[1718653035672,0.00085,66890.0,66889.0,2.21985913]
[1718653036270,0.00085,66890.0,66889.0,2.11785913]
[1718653037675,0.00085,66890.0,66889.0,1.60615713]
[1718653038099,0.00085,66890.0,66889.0,1.81885713]
[1718653038300,0.00085,66890.0,66889.0,2.11785913]
[1718653038504,0.01055,66890.0,66889.0,0.62000885]
[1718653038865,0.01055,66890.0,66889.0,0.28994952]
[1718653039268,0.01055,66890.0,66889.0,0.03722064]
[1718653039580,0.01055,66890.0,66889.0,0.08722064]
[1718653040111,0.32088473,66890.0,66889.0,0.08722064]
[1718653040318,0.32088473,66890.0,66889.0,0.064]
[1718653040519,0.32088473,66890.0,66889.0,0.07240027]
[1718653040719,0.32188473,66890.0,66889.0,0.07240027]
[1718653041175,0.32188473,66890.0,66889.0,0.05840027]
[1718653041392,0.01,66884.0,66882.0,0.1]
[1718653041678,0.0197,66884.0,66883.0,0.05]
[1718653041882,0.33006599,66884.0,66883.0,0.05810282]
[1718653042418,0.32006599,66884.0,66883.0,0.05810282]
[1718653042619,0.0097,66884.0,66883.0,0.05810282]
[1718653042728,0.0117,66884.0,66883.0,0.05810282]
[1718653044153,0.0117,66884.0,66883.0,0.00810282]
[1718653044360,0.33205681,66884.0,66883.0,0.00810282]
[1718653044622,0.33205681,66884.0,66883.0,0.00910282]
[1718653044623,0.33505681,66884.0,66883.0,0.00910282]
[1718653044816,0.33505681,66884.0,66883.0,0.002]
[1718653044973,0.33105681,66884.0,66883.0,0.001]
[1718653045301,0.33605681,66884.0,66883.0,0.002]
[1718653045506,0.40836217,66884.0,66883.0,0.002]
[1718653045740,0.33605681,66884.0,66883.0,0.002]
[1718653045958,0.39682099,66884.0,66883.0,0.001]
[1718653046161,0.39682099,66884.0,66876.0,0.12593072]
[1718653046162,0.0197,66877.0,66876.0,0.12593072]
[1718653046367,0.33005681,66877.0,66876.0,0.12593072]
[1718653046574,0.33005681,66877.0,66876.0,0.13408487]
[1718653046780,0.33005681,66877.0,66876.0,0.12593072]
[1718653046933,0.32005681,66877.0,66876.0,0.13408487]
[1718653047802,0.33005681,66877.0,66876.0,0.13408487]
[1718653048004,0.33005681,66877.0,66876.0,0.08408487]
[1718653048171,0.33005681,66877.0,66876.0,0.13408487]
[1718653048375,0.33505681,66877.0,66876.0,0.13508487]
[1718653049168,0.0247,66877.0,66876.0,0.08508487]
[1718653049373,0.33510242,66877.0,66876.0,0.08508487]
[1718653050032,0.33510242,66877.0,66876.0,0.07693072]
[1718653050240,0.39633326,66877.0,66876.0,0.08510063]
[1718653050461,0.49633326,66877.0,66876.0,0.00916991]
[1718653050890,0.49633326,66877.0,66876.0,0.001]
[1718653050891,0.50687393,66877.0,66876.0,0.001]
[1718653051279,0.39633326,66877.0,66876.0,0.001]
[1718653051486,0.39613326,66877.0,66876.0,0.001]
[1718653051608,0.39660518,66877.0,66876.0,0.001]
[1718653052166,0.39760518,66877.0,66876.0,0.002]
[1718653052369,0.39760518,66877.0,66876.0,0.002935]
[1718653055070,0.42146612,66877.0,66876.0,0.002935]
[1718653056994,0.35976336,66877.0,66876.0,0.002935]
[1718653057133,0.35976336,66877.0,66876.0,0.01111503]
[1718653057341,0.35976336,66877.0,66876.0,0.002935]
[1718653057768,0.12486094,66877.0,66876.0,0.002935]
[1718653057962,0.12486094,66877.0,66876.0,0.01111503]
[1718653058349,0.12486094,66877.0,66876.0,0.002935]
[1718653058619,0.12486094,66877.0,66876.0,0.01111503]
[1718653058848,0.12486094,66877.0,66876.0,0.002935]
[1718653059083,0.12486094,66877.0,66876.0,0.01111503]
[1718653059296,0.12486094,66877.0,66876.0,0.002935]
[1718653059297,0.02486094,66877.0,66876.0,0.002935]
[1718653059524,0.02486094,66877.0,66876.0,0.01111503]
[1718653059754,0.02486094,66877.0,66876.0,0.002935]
[1718653059971,0.02486094,66877.0,66876.0,0.01111503]
[1718653060206,0.02486094,66877.0,66876.0,0.002935]
[1718653060468,0.02486094,66877.0,66876.0,0.01111503]
[1718653060662,0.02486094,66877.0,66876.0,0.002935]
[1718653060792,0.02486094,66877.0,66876.0,0.01111503]
[1718653060996,0.02486094,66877.0,66876.0,0.002935]
[1718653061205,0.02486094,66877.0,66876.0,0.01111503]
[1718653061401,0.02486094,66877.0,66876.0,0.002935]
[1718653061616,0.02486094,66877.0,66876.0,0.01111503]
[1718653061824,0.02486094,66877.0,66876.0,0.002935]
[1718653062362,0.02486094,66877.0,66876.0,0.01111503]
[1718653062593,0.02486094,66877.0,66876.0,0.002935]
[1718653062814,0.02486094,66877.0,66876.0,0.01111503]
[1718653063024,0.02486094,66877.0,66876.0,0.002935]
[1718653063239,0.02486094,66877.0,66876.0,0.01111503]
[1718653063463,0.02486094,66877.0,66876.0,0.002935]
[1718653063688,0.02486094,66877.0,66876.0,0.01111503]
[1718653063904,0.02486094,66877.0,66876.0,0.002935]
[1718653064125,0.02486094,66877.0,66876.0,0.01111503]
[1718653066026,0.001,66877.0,66876.0,0.01111503]
[1718653066231,0.001,66877.0,66876.0,0.16384391]
[1718653066618,0.001,66877.0,66876.0,0.56748356]
[1718653066843,0.001,66877.0,66876.0,0.41795356]
[1718653067194,0.001,66877.0,66876.0,0.32230324]
[1718653067678,0.001,66877.0,66876.0,0.21284391]
[1718653067877,0.02380476,66881.0,66878.0,0.05]
[1718653068036,0.02380476,66881.0,66879.0,0.08945933]
[1718653068216,0.06561218,66880.0,66879.0,0.09764715]
[1718653068629,0.00085,66890.0,66879.0,0.09764715]
[1718653068829,0.06639229,66889.0,66886.0,0.07593072]
[1718653069404,0.06639229,66889.0,66887.0,0.00818782]
[1718653070188,0.06639229,66889.0,66888.0,1.032856]
[1718653070337,0.001,66889.0,66888.0,0.564346]
[1718653070539,0.001,66889.0,66888.0,0.57249859]
[1718653070923,0.00085,66890.0,66889.0,0.15945933]
[1718653071071,0.00085,66890.0,66889.0,0.31218821]
[1718653071295,0.00085,66890.0,66889.0,0.51168921]
[1718653071616,0.00085,66890.0,66889.0,0.3703408]
[1718653073549,0.00085,66890.0,66889.0,0.26088147]
[1718653073944,0.00185,66890.0,66889.0,0.26188147]
[1718653074148,0.00185,66890.0,66889.0,0.3713408]
[1718653074353,0.00185,66890.0,66889.0,0.26188147]
[1718653074557,0.00185,66890.0,66889.0,0.3713408]
[1718653077065,0.00185,66890.0,66889.0,0.36620952]
[1718653077262,0.00185,66890.0,66889.0,0.51802634]
[1718653078481,0.00165,66890.0,66889.0,0.51802634]
[1718653078709,0.00165,66890.0,66889.0,0.36620952]
[1718653079735,0.00165,66890.0,66889.0,0.34620952]
[1718653079905,0.00165,66890.0,66889.0,0.36620952]
[1718653080319,0.00165,66890.0,66889.0,0.34620952]
[1718653081616,0.00165,66890.0,66889.0,0.25675019]
[1718653082578,0.00165,66890.0,66889.0,0.59680952]
[1718653084675,0.00165,66890.0,66889.0,0.61680952]
[1718653085932,0.00165,66890.0,66889.0,0.50735019]
[1718653086148,0.00165,66890.0,66889.0,0.25675019]
[1718653086609,0.00165,66890.0,66889.0,0.20675019]
[1718653087977,0.00165,66890.0,66889.0,0.25675019]
[1718653088212,0.00165,66890.0,66889.0,0.36620952]
[1718653089635,0.00165,66890.0,66889.0,0.25675019]
[1718653090118,0.00165,66890.0,66889.0,0.36620952]
[1718653091614,0.00165,66890.0,66889.0,0.45120952]
[1718653092213,0.00165,66890.0,66889.0,0.34175019]
[1718653092452,0.00165,66890.0,66889.0,0.43120952]
[1718653095303,0.00165,66890.0,66889.0,0.45120952]
[1718653095738,0.00165,66890.0,66889.0,0.43120952]
[1718653097326,0.00165,66890.0,66889.0,0.25675019]
[1718653097550,0.3119436,66890.0,66889.0,0.29175019]
[1718653098127,0.37766462,66890.0,66889.0,0.20675019]
[1718653098678,0.37766462,66890.0,66889.0,0.05915259]
[1718653099314,0.37768112,66890.0,66889.0,0.05915259]
[1718653099661,0.37768112,66890.0,66889.0,0.051]
[1718653100323,0.37768112,66890.0,66889.0,0.06020626]
[1718653103694,0.37707296,66890.0,66889.0,0.06020626]
[1718653109666,0.3771389,66890.0,66889.0,0.06020626]
[1718653111345,0.39992247,66890.0,66889.0,0.06020626]
[1718653114599,0.3771389,66890.0,66889.0,0.06020626]
[1718653114978,0.3771389,66890.0,66889.0,0.91183514]
[1718653115180,0.3771389,66890.0,66889.0,1.02222947]
[1718653115452,0.3771389,66890.0,66889.0,0.82777014]
[1718653115795,0.3119601,66890.0,66889.0,1.02222947]
[1718653116389,0.3119601,66890.0,66889.0,1.00222947]
[1718653116795,0.3119601,66890.0,66889.0,1.02222947]
[1718653117530,0.3119601,66890.0,66889.0,1.00222947]
[1718653117779,0.3119601,66890.0,66889.0,0.91277014]
[1718653118176,0.3119601,66890.0,66889.0,1.00222947]
[1718653118385,0.3119601,66890.0,66889.0,0.91277014]
[1718653118714,0.3119601,66890.0,66889.0,0.86277014]
[1718653119104,0.37785312,66890.0,66889.0,0.91277014]
[1718653119721,0.37785312,66890.0,66889.0,0.86277014]
[1718653120243,0.37785312,66890.0,66889.0,0.21387014]
[1718653122693,0.37834433,66890.0,66889.0,0.21387014]
[1718653123733,0.37834433,66890.0,66889.0,0.06114126]
[1718653130631,0.42298652,66890.0,66889.0,0.06114126]
[1718653130831,0.37834433,66890.0,66889.0,0.06114126]
[1718653132343,0.37835944,66890.0,66889.0,0.06114126]
[1718653133172,0.37817951,66890.0,66889.0,0.06114126]
[1718653135351,0.3780787,66890.0,66889.0,0.06114126]
[1718653142383,0.06775349,66890.0,66889.0,0.06114126]
[1718653143003,0.37807856,66890.0,66889.0,0.06114126]
[1718653143208,0.37807856,66890.0,66889.0,0.63374126]
[1718653147387,0.37807856,66890.0,66889.0,1.28497314]
[1718653147579,0.00147007,66890.0,66889.0,1.85093447]
[1718653147809,0.05318546,66905.0,66903.0,0.5644]
[1718653148010,0.36335432,66904.0,66903.0,0.6144]
[1718653148233,0.31025099,66904.0,66903.0,0.85885933]
[1718653148461,0.00855,66905.0,66904.0,0.94112633]
[1718653148676,0.00855,66905.0,66904.0,0.94438821]
[1718653148891,0.00855,66905.0,66904.0,0.95360148]
[1718653149297,0.00855,66905.0,66904.0,1.55147148]
[1718653149590,0.00855,66905.0,66904.0,1.40200348]
[1718653149774,0.00855,66905.0,66904.0,1.55471604]
[1718653151863,0.00855,66905.0,66904.0,1.63971604]
[1718653152888,0.00855,66905.0,66904.0,1.93865104]
[1718653153090,0.00855,66905.0,66904.0,1.85365104]
[1718653153319,0.00855,66905.0,66904.0,1.63971604]
[1718653153707,0.00855,66905.0,66904.0,1.64271604]
[1718653155107,0.00855,66905.0,66904.0,1.34378104]
[1718653155601,0.00855,66905.0,66904.0,1.64271604]
[1718653156404,0.00855,66905.0,66904.0,1.25878104]
[1718653156627,0.00855,66905.0,66904.0,1.64271604]
[1718653157944,0.00855,66905.0,66904.0,1.94165104]
[1718653158151,0.00855,66905.0,66904.0,1.64271604]
[1718653160043,0.00855,66905.0,66904.0,1.55771604]
[1718653160340,0.00855,66905.0,66904.0,1.19431404]
[1718653160988,0.00855,66905.0,66904.0,1.04160148]
[1718653161187,0.00855,66905.0,66904.0,1.49000348]
[1718653162387,0.00855,66905.0,66904.0,1.04160148]
[1718653163302,0.00855,66905.0,66904.0,1.19106848]
[1718653163510,0.00855,66905.0,66904.0,1.04160148]
[1718653164095,0.00855,66905.0,66904.0,1.19431404]
[1718653164813,0.00855,66905.0,66904.0,1.17431404]
[1718653165013,0.00855,66905.0,66904.0,1.19431404]
[1718653169211,0.00855,66905.0,66904.0,1.34378104]
[1718653169417,0.00855,66905.0,66904.0,2.09915104]
[1718653169616,0.00855,66905.0,66904.0,2.67215104]
[1718653169817,0.00855,66907.0,66906.0,0.675889]
[1718653170179,0.00855,66907.0,66906.0,2.96345571]
[1718653170381,0.00855,66907.0,66906.0,3.28538171]
[1718653170567,0.00855,66907.0,66906.0,2.70038171]
[1718653170865,0.00855,66907.0,66906.0,3.27038171]
[1718653171064,0.00855,66922.0,66921.0,0.95660633]
[1718653171206,0.00855,66922.0,66921.0,1.95128314]
[1718653171415,0.00855,66922.0,66921.0,1.36267824]
[1718653171856,0.00805,66922.0,66921.0,1.36267824]
[1718653172897,0.00805,66922.0,66921.0,1.98339624]
[1718653174665,0.00805,66922.0,66921.0,1.68453724]
[1718653175065,0.00805,66922.0,66921.0,0.52238991]
[1718653176846,0.00805,66922.0,66921.0,0.63184924]
[1718653177053,0.00805,66922.0,66921.0,0.31184198]
[1718653177268,0.00805,66922.0,66921.0,0.42130131]
[1718653177473,0.00805,66922.0,66921.0,0.31184198]
[1718653177661,0.00805,66922.0,66921.0,0.31034198]
[1718653178068,0.00805,66922.0,66921.0,0.41980131]
[1718653178221,0.00805,66922.0,66921.0,0.54159534]
[1718653179618,0.00805,66922.0,66921.0,0.69102434]
[1718653179827,0.00805,66922.0,66921.0,1.32148334]
[1718653180688,0.00805,66922.0,66921.0,1.57378334]
[1718653181697,0.00805,66922.0,66921.0,1.27492434]
[1718653183716,0.00805,66922.0,66921.0,1.57378334]
[1718653185342,0.00805,66922.0,66921.0,1.65878334]
[1718653188002,0.00805,66922.0,66921.0,1.21049534]
[1718653188423,0.00805,66922.0,66921.0,1.35992434]
[1718653192266,0.00805,66922.0,66921.0,1.21049534]
[1718653196402,0.00805,66922.0,66921.0,1.51546934]
[1718653196558,0.00805,66922.0,66921.0,1.40601001]
[1718653196764,0.00805,66922.0,66921.0,1.49546934]
[1718653196979,0.00805,66922.0,66921.0,1.19921598]
[1718653197356,0.31820734,66922.0,66921.0,1.19921598]
[1718653197738,0.31820734,66922.0,66921.0,1.30867531]
[1718653198675,0.31820734,66922.0,66921.0,1.19921598]
[1718653199447,0.37152728,66922.0,66921.0,1.19921598]
[1718653200302,0.37152728,66922.0,66921.0,1.10071598]
[1718653200512,0.39022728,66922.0,66921.0,1.10071598]
[1718653200713,0.37152728,66922.0,66921.0,1.10071598]
[1718653202118,0.37152728,66922.0,66921.0,1.21017531]
[1718653202541,0.37152728,66922.0,66921.0,2.22279638]
[1718653202751,0.31820734,66922.0,66921.0,2.67108438]
[1718653202956,0.31820734,66922.0,66921.0,2.37222538]
[1718653203308,0.00805,66922.0,66921.0,2.37222538]
[1718653203550,0.31818465,66922.0,66921.0,2.37222538]
[1718653203810,0.00805,66922.0,66921.0,2.37222538]
[1718653205449,0.00805,66922.0,66921.0,2.26236331]
[1718653205655,0.31818337,66922.0,66921.0,1.81407531]
[1718653206792,0.37132471,66922.0,66921.0,1.81407531]
[1718653206950,0.31818337,66922.0,66921.0,1.81407531]
[1718653207108,0.31800352,66922.0,66921.0,1.96350431]
[1718653207313,0.37114483,66922.0,66921.0,1.96350431]
[1718653208839,0.37113893,66922.0,66921.0,1.96350431]
[1718653209051,0.37113893,66922.0,66921.0,1.81407531]
[1718653209390,0.37113893,66922.0,66921.0,1.89000603]
[1718653209391,0.31800352,66922.0,66921.0,1.89000603]
[1718653209588,0.31800352,66922.0,66921.0,2.03943503]
[1718653209820,0.31800352,66922.0,66921.0,1.2266467]
[1718653210030,0.39005201,66922.0,66921.0,1.15165098]
[1718653211109,0.37135201,66922.0,66921.0,1.15165098]
[1718653214509,0.37135201,66922.0,66921.0,1.24111031]
[1718653214697,0.37135201,66922.0,66921.0,1.15165098]
[1718653215880,0.37135201,66922.0,66921.0,1.26111031]
[1718653216305,0.00787015,66922.0,66921.0,2.20820034]
[1718653216511,0.00787015,66922.0,66921.0,2.05877134]
[1718653217098,0.00787015,66922.0,66921.0,2.05829134]
[1718653218841,0.00787015,66922.0,66921.0,2.50657934]
[1718653219198,0.00787015,66922.0,66921.0,2.05829134]
[1718653220227,0.00787015,66922.0,66921.0,1.92733031]
[1718653220479,0.00787015,66922.0,66921.0,2.07675931]
[1718653221171,0.00787015,66922.0,66921.0,2.37561831]
[1718653221831,0.00787015,66922.0,66921.0,2.67447731]
[1718653223326,0.00787015,66922.0,66921.0,2.37561831]
[1718653224096,0.00787015,66922.0,66921.0,2.37861831]
[1718653226066,0.00787015,66922.0,66921.0,1.99475931]
[1718653226578,0.00787015,66922.0,66921.0,1.84533031]
[1718653227477,0.00787015,66922.0,66921.0,1.99475931]
[1718653228472,0.00787015,66922.0,66921.0,2.14747187]
[1718653228728,0.00787015,66922.0,66921.0,2.93568987]
[1718653229008,0.00787015,66922.0,66921.0,3.23454887]
[1718653229175,0.00787015,66922.0,66921.0,3.04972451]
[1718653229363,0.00787015,66922.0,66921.0,3.09451943]
[1718653229883,0.00787015,66922.0,66921.0,3.10451752]
[1718653230066,0.00787015,66922.0,66921.0,3.09451752]
[1718653230227,0.00787015,66922.0,66921.0,3.10451752]
[1718653230431,0.00787015,66922.0,66921.0,2.93568987]
[1718653230669,0.00787015,66922.0,66921.0,2.93268987]
[1718653230874,0.00787015,66922.0,66921.0,2.92268987]
[1718653231078,0.00787015,66922.0,66921.0,2.96068987]
[1718653231505,0.00787015,66922.0,66921.0,2.94668987]
[1718653231842,0.00787015,66922.0,66921.0,2.92268987]
[1718653232040,0.00787015,66922.0,66921.0,2.93668987]
[1718653232364,0.00787015,66922.0,66921.0,2.94668987]
[1718653232564,0.00787015,66922.0,66921.0,2.95068987]
[1718653235027,0.00787015,66922.0,66921.0,2.96068987]
[1718653235241,0.00787015,66922.0,66921.0,2.95068987]
[1718653237952,0.00787015,66922.0,66921.0,2.96068987]
[1718653238574,0.00787015,66922.0,66921.0,2.95068987]
[1718653239752,0.00787015,66922.0,66921.0,2.96068987]
[1718653240353,0.00787015,66922.0,66921.0,3.25954887]
[1718653240854,0.00787015,66922.0,66921.0,3.24954887]
[1718653245342,0.00787015,66922.0,66921.0,3.25954887]
[1718653245541,0.00787015,66922.0,66921.0,2.66183087]
[1718653245947,0.00787015,66922.0,66921.0,3.25954887]
[1718653246483,0.00787015,66922.0,66921.0,2.96068987]
[1718653246932,0.00787015,66922.0,66921.0,2.94568987]
[1718653247753,0.00787015,66922.0,66921.0,3.89454887]
[1718653247984,0.00787015,66922.0,66921.0,4.47756367]
[1718653248189,0.00787015,66922.0,66921.0,4.24273275]
[1718653248505,0.00787015,66922.0,66921.0,4.5400543]
[1718653249322,0.00787015,66922.0,66921.0,4.22873275]
[1718653249719,0.00787015,66922.0,66921.0,4.24273275]
[1718653249919,0.00787015,66922.0,66921.0,4.16159003]
[1718653250121,0.00787015,66922.0,66921.0,4.14759003]
[1718653251222,0.00787015,66922.0,66921.0,4.16159003]
[1718653251418,0.00787015,66922.0,66921.0,3.51159003]
[1718653251671,0.00787015,66922.0,66921.0,3.52559003]
[1718653252287,0.00787015,66922.0,66921.0,3.51159003]
[1718653252491,0.00787015,66922.0,66921.0,3.52559003]
[1718653253417,0.00787015,66922.0,66921.0,4.18559781]
[1718653254036,0.00787015,66922.0,66921.0,4.42884984]
[1718653254242,0.00787015,66922.0,66921.0,4.72717571]
[1718653254461,0.00787015,66922.0,66921.0,5.12803157]
[1718653254667,0.00787015,66922.0,66921.0,4.23495367]
[1718653254873,0.00787015,66922.0,66921.0,5.00247522]
[1718653255103,0.00787015,66922.0,66921.0,4.91295214]
[1718653255829,0.00787015,66922.0,66921.0,5.01641834]
[1718653256286,0.00787015,66922.0,66921.0,4.92514091]
[1718653256506,0.00787015,66922.0,66921.0,4.81359612]
[1718653256735,0.00787015,66922.0,66921.0,4.75273712]
[1718653256944,0.00787015,66922.0,66921.0,4.73428191]
[1718653257161,0.00787015,66922.0,66921.0,4.98314091]
[1718653257407,0.00787015,66922.0,66921.0,4.60328191]
[1718653257584,0.00787015,66922.0,66921.0,4.7653838]
[1718653257833,0.00787015,66922.0,66921.0,5.0642428]
[1718653258220,0.00787015,66922.0,66921.0,4.74766588]
[1718653259087,0.00787015,66922.0,66921.0,4.74766953]
[1718653259320,0.00787015,66922.0,66921.0,4.70293765]
[1718653259524,0.00787015,66922.0,66921.0,4.87203954]
[1718653259735,0.00787015,66922.0,66921.0,5.16934697]
[1718653260505,0.00787015,66922.0,66921.0,5.00024508]
[1718653260661,0.00787015,66922.0,66921.0,4.91524508]
[1718653260863,0.00787015,66922.0,66921.0,3.11005101]
[1718653261083,0.00787015,66922.0,66921.0,1.56655931]
[1718653261281,0.00787015,66922.0,66921.0,2.16427731]
[1718653262251,0.00787015,66922.0,66921.0,2.15027731]
[1718653262586,0.00787015,66922.0,66921.0,2.16427731]
[1718653263041,0.00787015,66922.0,66921.0,2.15027731]
[1718653263251,0.00787015,66922.0,66921.0,2.13627731]
[1718653263405,0.00787015,66922.0,66921.0,1.85141831]
[1718653263613,0.00787015,66922.0,66921.0,1.33213031]
[1718653263812,0.00787015,66922.0,66921.0,1.56655931]
[1718653264044,0.00787015,66922.0,66921.0,1.86541831]
[1718653264255,0.00787015,66922.0,66921.0,2.16427731]
[1718653264414,0.00787015,66922.0,66921.0,2.46313631]
[1718653264622,0.00787015,66922.0,66921.0,2.49613631]
[1718653264829,0.00787015,66922.0,66921.0,2.48613631]
[1718653265030,0.00787015,66922.0,66921.0,2.49613631]
[1718653265234,0.00787015,66922.0,66921.0,2.25498987]
[1718653265517,0.00787015,66922.0,66921.0,2.33998987]
[1718653265831,0.00787015,66922.0,66921.0,2.63884887]
[1718653266332,0.00787015,66922.0,66921.0,2.33998987]
[1718653266564,0.00787015,66922.0,66921.0,2.41592059]
[1718653266857,0.00787015,66922.0,66921.0,2.26320803]
[1718653269364,0.00787015,66922.0,66921.0,1.40806103]
[1718653269610,0.00787015,66922.0,66921.0,1.79192003]
[1718653269734,0.00787015,66922.0,66921.0,1.94134903]
[1718653270138,0.00787015,66922.0,66921.0,1.55749003]
[1718653270429,0.00787015,66922.0,66921.0,1.64249003]
[1718653270634,0.00787015,66922.0,66921.0,1.94134903]
[1718653270783,0.00787015,66922.0,66921.0,1.64249003]
[1718653272691,0.00787015,66922.0,66921.0,1.94134903]
[1718653273668,0.00787015,66922.0,66921.0,1.49306103]
[1718653274183,0.00787015,66922.0,66921.0,1.64249003]
[1718653275239,0.00787015,66922.0,66921.0,1.49306103]
[1718653275604,0.00787015,66922.0,66921.0,2.24020803]
[1718653277567,0.00787015,66922.0,66921.0,2.39770803]
[1718653277782,0.00787015,66922.0,66921.0,4.09567959]
[1718653282429,0.00787015,66922.0,66921.0,4.08567959]
[1718653283421,0.00787015,66922.0,66921.0,3.29296703]
[1718653286913,0.00787015,66922.0,66921.0,3.80296703]
[1718653290134,0.00787015,66922.0,66921.0,3.30296703]
[1718653290338,0.00787015,66922.0,66921.0,1.43106103]
[1718653290609,0.00787015,66922.0,66921.0,1.66549003]
[1718653290941,0.00787015,66922.0,66921.0,1.96434903]
[1718653291295,0.00787015,66922.0,66921.0,1.22818759]
[1718653295429,0.00787015,66922.0,66921.0,0.51918703]
[1718653295629,0.00787015,66922.0,66921.0,0.60418703]
[1718653295741,0.00787015,66922.0,66921.0,0.51918703]
[1718653296153,0.00787015,66922.0,66921.0,0.60418703]
[1718653298584,0.00787015,66922.0,66921.0,1.44674603]
[1718653298789,0.00787015,66922.0,66921.0,1.29731603]
[1718653299020,0.00787015,66922.0,66921.0,1.36502859]
[1718653299384,0.00787015,66922.0,66921.0,1.45002859]
[1718653300384,0.00787015,66922.0,66921.0,1.74888759]
[1718653300787,0.00787015,66922.0,66921.0,1.59617503]
[1718653304820,0.00787015,66922.0,66921.0,1.35547503]
[1718653304931,0.00787015,66922.0,66921.0,1.05247503]
[1718653305755,0.00787015,66922.0,66921.0,0.51918703]
[1718653306032,0.00787015,66922.0,66921.0,0.59418703]
[1718653306239,0.02657015,66922.0,66921.0,0.58418703]
[1718653306672,0.02657015,66922.0,66921.0,0.60418703]
[1718653307031,0.33671757,66922.0,66921.0,0.33379698]
[1718653307444,0.39480501,66922.0,66921.0,0.33379698]
[1718653308345,0.39508705,66922.0,66921.0,0.33379698]
[1718653308934,0.39508705,66922.0,66921.0,0.42325631]
[1718653309882,0.33671757,66922.0,66921.0,0.42325631]
[1718653310395,0.33671757,66922.0,66921.0,0.44325631]
[1718653311340,0.33671757,66922.0,66921.0,0.33379698]
[1718653314074,0.39515964,66922.0,66921.0,0.0380481]
[1718653314304,0.4398635,66922.0,66921.0,0.0380481]
[1718653314548,0.39515964,66922.0,66921.0,0.0380481]
[1718653314769,0.48456736,66922.0,66921.0,0.014935]
[1718653315427,0.39515964,66922.0,66921.0,0.014935]
[1718653315562,0.39515964,66922.0,66921.0,0.028935]
[1718653315767,0.48015964,66922.0,66921.0,0.028935]
[1718653316165,0.54703081,66922.0,66921.0,0.028935]
[1718653316587,0.54702425,66922.0,66921.0,0.028935]
[1718653316793,0.54702425,66922.0,66921.0,0.014935]
[1718653316994,0.54702425,66922.0,66921.0,0.015935]
[1718653317190,0.48215964,66922.0,66921.0,0.015935]
[1718653317395,0.48215964,66922.0,66921.0,0.001935]
[1718653317626,0.48215964,66922.0,66921.0,0.002935]
[1718653317830,0.48515964,66922.0,66921.0,0.002935]
[1718653318205,0.52970175,66922.0,66921.0,0.002935]
[1718653319153,0.48515964,66922.0,66921.0,0.002935]
[1718653319304,0.52969419,66922.0,66921.0,0.002935]
[1718653319712,0.44469419,66922.0,66921.0,0.002935]
[1718653320344,0.45523486,66922.0,66921.0,0.002935]
[1718653320558,1.44666614,66922.0,66921.0,0.002935]
[1718653320833,1.17909697,66922.0,66921.0,0.002935]
[1718653321468,1.17409697,66922.0,66921.0,0.000935]
[1718653321711,1.17609697,66922.0,66921.0,0.001935]
[1718653321879,1.17809697,66922.0,66921.0,0.002935]
[1718653322074,1.26309697,66922.0,66921.0,0.002935]
[1718653322474,1.26309697,66922.0,66921.0,0.001935]
[1718653322475,1.26109697,66922.0,66921.0,0.001935]
[1718653322841,1.1655563,66922.0,66921.0,0.001935]
[1718653323109,0.5185353,66922.0,66921.0,0.000935]
[1718653323316,0.5185353,66922.0,66921.0,0.001935]
[1718653323317,0.51732764,66922.0,66921.0,0.001935]
[1718653323518,0.52532764,66922.0,66921.0,0.001935]
[1718653323739,0.61032764,66922.0,66921.0,0.001935]
[1718653324147,0.63486831,66922.0,66921.0,0.001935]
[1718653324697,0.53932764,66922.0,66921.0,0.001935]
[1718653324884,0.62432764,66922.0,66921.0,0.001935]
[1718653325085,0.53932764,66922.0,66921.0,0.001935]
[1718653325329,0.66880445,66922.0,66921.0,0.001935]
[1718653325504,0.58380445,66922.0,66921.0,0.001935]
[1718653326530,0.53932764,66922.0,66921.0,0.001935]
[1718653326947,0.52062764,66922.0,66921.0,0.0015961]
[1718653327161,0.52062764,66922.0,66921.0,0.01202428]
[1718653327984,0.50662764,66922.0,66921.0,0.01202428]
[1718653328186,0.51162764,66922.0,66921.0,0.01202428]
[1718653328770,0.49862764,66922.0,66921.0,0.01102428]
[1718653329170,0.51162764,66922.0,66921.0,0.01202428]
[1718653329628,0.51862764,66922.0,66921.0,0.01302428]
[1718653330323,0.51862764,66922.0,66921.0,0.01202428]
[1718653330529,0.49862764,66922.0,66921.0,0.01102428]
[1718653330695,0.50462764,66922.0,66921.0,0.01202428]
[1718653330890,0.39345964,66922.0,66921.0,0.01202428]
[1718653331293,0.39945964,66922.0,66921.0,0.01302428]
[1718653331497,0.38845964,66922.0,66921.0,0.01202428]
[1718653331871,0.39945964,66922.0,66921.0,0.01302428]
[1718653332117,0.34101757,66922.0,66921.0,0.01302428]
[1718653332321,0.33001757,66922.0,66921.0,0.01202428]
[1718653332551,0.01987015,66922.0,66921.0,0.01202428]
[1718653332862,0.00787015,66922.0,66921.0,0.01102428]
[1718653333105,0.01487015,66922.0,66921.0,0.01202428]
[1718653333354,0.32507113,66922.0,66921.0,0.01202428]
[1718653333522,0.32507113,66922.0,66921.0,0.087955]
[1718653333966,0.33707113,66922.0,66921.0,0.088955]
[1718653334175,0.40191092,66922.0,66921.0,0.088955]
[1718653334389,0.40191092,66922.0,66921.0,0.01302428]
[1718653334390,0.41051013,66922.0,66921.0,0.01302428]
[1718653335890,0.41051013,66922.0,66921.0,0.0025961]
[1718653336708,0.42061013,66922.0,66921.0,0.0025961]
[1718653342429,0.42101111,66922.0,66921.0,0.0025961]
[1718653342892,0.43155178,66922.0,66921.0,0.0025961]
[1718653343705,0.42101111,66922.0,66921.0,0.0025961]
[1718653344703,0.43155178,66922.0,66921.0,0.0025961]
[1718653345954,0.42101111,66922.0,66921.0,0.0025961]
[1718653346160,0.46543607,66922.0,66921.0,0.0025961]
[1718653347263,0.46543328,66922.0,66921.0,0.0025961]
[1718653347575,0.55043328,66922.0,66921.0,0.0025961]
[1718653348159,0.55043328,66922.0,66908.0,0.08945933]
[1718653348160,0.0187,66906.0,66886.0,0.4678]
[1718653348528,0.01054067,66903.0,66896.0,0.45558432]
[1718653348675,0.085,66895.0,66891.0,0.3104]
[1718653348899,0.37544096,66894.0,66891.0,0.3104]
[1718653349077,0.085,66895.0,66889.0,0.000935]
[1718653349078,0.085,66892.0,66889.0,0.000935]
[1718653349249,0.37730065,66891.0,66889.0,0.000935]
[1718653349451,0.37730065,66890.0,66889.0,0.000935]
[1718653351789,0.38330065,66890.0,66889.0,0.000935]